Cogmind - Beta 14 --- EXPLORER MODE // 2024.09.01 @ 16:09:46 Player: Genju Result: Destroyed by G-50 Soldier with Heavy Laser Performance ------------- Evolutions (4) 2000 Regions Visited (7) 1400 Robots Destroyed (81) 405 Value Destroyed (2375) 2375 Prototype IDs (7) 140 Alien Tech Used (0) 0 Bonus (738) 738 TOTAL SCORE: 7058 Bonus ------- High Alert Combat Kills 52 Follower Combat Kills 195 Entered DSFs 500 Friendly Fire -9 Cogmind --------- Core Integrity 0/850 Matter 272/300 Energy 100/100 System Corruption 1% Temperature Cool (9) Movement Core (50) Location -6/Factory Parts ------- > --- POWER (2) -------- (None) > --- PROPULSION (6) --- (None) > --- UTILITY (6) ------ Machine Analyzer Improved Hacking Suite > --- WEAPON (2) ------- (None) > --- INVENTORY (5) ---- Advanced Heat Sink Transmission Jammer Advanced Hacking Suite Remote Datajack Peak State ------------ > --- POWER ------------ Improved Ion Engine Light Deuterium Engine > --- PROPULSION ------- Xenon Bombardment Thruster Xenon Bombardment Thruster Nuclear Pulse Thruster Nuclear Pulse Thruster Nuclear Pulse Thruster Nuclear Pulse Thruster > --- UTILITY ---------- Advanced Heat Sink Machine Analyzer Advanced Signal Interpreter Transmission Jammer Hacking Suite Hacking Suite > --- WEAPON ----------- Flak Gun Flak Gun > --- INVENTORY -------- Xenon Bombardment Thruster Advanced Power Amplifier Transmission Jammer Arc Projector Arc Projector [Rating: 66] Favorites ----------- Power Ion Engine Engine Ion Engine Power Core Light Nuclear Core Propulsion Flight Unit Treads Light Treads Leg Aluminum Leg Wheel Wheel Hover Unit Improved Hover Unit Flight Unit Flight Unit Utility Hacking Suite Device Structural Scanner Processor Machine Analyzer Hackware Hacking Suite Weapon Particle Gun Energy Gun Particle Gun Ballistic Gun Light Assault Rifle Ballistic Cannon Flak Cannon Build | -11 -10 -9 -9 -8 -7 -7 -6 ------- Run | Yrd Mat Mat Sto Mat Fac DSF Fac Slots Evolved 9 | . 1 2 . 2 2 . 2 Power 1 | . 1 . . . . . . Propulsion 4 | . . 2 . . . . 2 Utility 4 | . . . . 2 2 . . Weapon . | . . . . . . . . Parts Attached 88 | 7 4 14 9 17 2 8 27 Power 12 | 1 1 2 2 3 1 . 2 Engine 9 | 1 1 2 1 2 1 . 1 Core 3 | . . . 1 1 . . 1 Reactor . | . . . . . . . . Propulsion 39 | 2 2 9 2 7 1 3 13 Treads 1 | . . . . 1 . . . Leg 2 | 2 . . . . . . . Wheel 2 | . 2 . . . . . . Hover 1 | . . . . 1 . . . Flight 33 | . . 9 2 5 1 3 13 Utility 24 | 2 1 2 2 5 . 4 8 Device 13 | 1 1 1 . 4 . 4 2 Storage . | . . . . . . . . Processor 5 | 1 . 1 1 . . . 2 Hackware 6 | . . . 1 1 . . 4 Protection . | . . . . . . . . Artifact . | . . . . . . . . Weapon 13 | 2 . 1 3 2 . 1 4 Energy Gun 8 | 1 . 1 3 . . . 3 Energy Cannon . | . . . . . . . . Ballistic Gun 4 | 1 . . . 1 . 1 1 Ballistic Cannon 1 | . . . . 1 . . . Launcher . | . . . . . . . . Special Weapon . | . . . . . . . . Impact Weapon . | . . . . . . . . Slashing Weapon . | . . . . . . . . Piercing Weapon . | . . . . . . . . Special Melee Weapon . | . . . . . . . . Unidentified Prototypes . | . . . . . . . . Parts Lost 51 | . . 3 9 12 . 2 25 Power 10 | . . . 3 2 . . 5 Propulsion 20 | . . 1 3 5 . . 11 Utility 11 | . . 1 1 3 . 2 4 Weapon 10 | . . 1 2 2 . . 5 Highest Loss Streak 9 | . . 1 4 5 . 1 9 To Critical Strikes 2 | . . . . . . . 2 Average Slot Usage (%) 83 | . 99 99 68 68 64 93 77 Engine 13 | . 25 20 6 6 11 14 8 Core 1 | . . . . 3 . . 1 Leg 2 | . 12 . . . . . . Wheel 2 | . 12 . . . . . . Flight 19 | . . 39 23 14 17 27 19 Device 12 | . 23 19 . 9 7 16 6 Processor 6 | . 1 . 9 8 7 7 10 Hackware 8 | . . . 10 8 14 14 18 Energy Gun 8 | . 12 9 16 5 . . 5 Ballistic Gun 6 | . 12 10 3 . 7 13 4 Peak Build Rating 66 | 7 8 15 19 31 29 52 66 Average Rating 24 | 4 7 10 14 21 25 47 49 On Entrance 18 | . 7 8 15 14 22 29 52 Naked Turns . | . . . . . . . . Heaviest Build 30 | 9 15 16 14 30 17 30 28 Greatest Support 36 | 20 20 16 16 20 14 23 36 Greatest Overweight (x) 4 | . 4 1 1 3 2 1 2 Average Overweight (x) . | . . . . 1 1 . . Largest Inventory Capacity 5 | 5 5 5 5 5 5 5 5 Average Capacity 5 | 5 5 5 5 5 5 5 5 Most Carried 5 | 5 5 5 5 5 5 5 5 Average Carried 3 | 2 4 3 4 2 4 3 4 Final Capacity 5 | 5 5 5 5 5 5 5 5 Final Carried 5 | 2 5 5 5 4 4 5 4 Class Distribution -------------------- 55% | Hacker-Mutant 15% | Hacker-Sprinter 13% | Scavenger-Sprinter 11% | Wizard-Mutant Dominant Class ---------------- Hacker-Mutant | -10/Materials Scavenger-Sprinter | -9/Materials Hacker-Mutant | -9/Storage Hacker-Mutant | -8/Materials Hacker-Mutant | -7/Factory Hacker-Mutant | -7/DSF Wizard-Mutant | -6/Factory Resources | -11 -10 -9 -9 -8 -7 -7 -6 ----------- Run | Yrd Mat Mat Sto Mat Fac DSF Fac Matter Collected 1526 | 221 100 183 97 289 35 240 361 Remotely . | . . . . . . . . Salvage Created 2394 | . 265 554 366 649 . 233 327 Parts 162 | . 30 49 22 40 . 6 15 Haulers Intercepted . | . . . . . . . . Recyclers Shooed 1 | . . . . . . . 1 Parts Field Recycled . | . . . . . . . . Retrieved Matter . | . . . . . . . . Parts Self-Destructed . | . . . . . . . . Prevented . | . . . . . . . . Kills | -11 -10 -9 -9 -8 -7 -7 -6 ------- Run | Yrd Mat Mat Sto Mat Fac DSF Fac Combat Hostiles Destroyed 57 | . 8 13 8 17 . 6 5 Guns 47 | . 8 13 8 7 . 6 5 Cannons 10 | . . . . 10 . . . Classes Destroyed 13 | . 3 4 1 1 . 2 2 Worker 2 | . . 1 . . . . 1 Builder 2 | . . 1 . 1 . . . Recycler 1 | . . . . 1 . . . Operator 5 | . . 3 . 1 . . 1 Watcher 14 | . 3 5 1 2 . . 3 Swarmer 19 | . 6 8 . 5 . . . Grunt 17 | . 2 1 5 6 . 3 . Protector 1 | . . . 1 . . . . Sentry 14 | . . 4 2 6 . . 2 Specialist 2 | . . . . . . 2 . Hunter 2 | . . . . . . . 2 Programmer 1 | . . . . . . . 1 Heavy 1 | . . . . . . 1 . Best Kill Streak 9 | . 3 6 4 9 . 3 3 Combat Bots Only 8 | . 2 4 4 8 . 3 2 Max Kills in Single Turn 2 | . 2 2 1 1 . 1 1 Gunslinging 1 | . 1 . . . . . . Exploded . | . . . . . . . . Melee . | . . . . . . . . Uniques/NPCs Destroyed . | . . . . . . . . Combat | -11 -10 -9 -9 -8 -7 -7 -6 -------- Run | Yrd Mat Mat Sto Mat Fac DSF Fac Hostile Shots Fired 715 | . 14 69 74 184 . 38 336 Missed 254 | . 3 26 29 58 . 11 127 Damage Taken 4348 | . 60 296 429 1127 . 371 2065 Core 1360 | . 7 72 104 299 . 16 862 Absorbed by Shields . | . . . . . . . . Ignored by Resistances 2662 | . 42 192 263 698 . 218 1249 Regen/Repaired (Parts) 55 | . . . . . . . 55 Core Remaining (%) 79 | 100 97 . 56 45 . 97 . Volleys Fired 223 | . 11 49 37 75 . 15 36 Largest 2 | . 2 2 2 2 . 2 2 Hottest 170 | . 60 85 130 130 . 56 170 Shots Fired 349 | . 22 92 67 79 . 30 59 Gun 320 | . 22 92 67 50 . 30 59 Cannon 29 | . . . . 29 . . . Launcher . | . . . . . . . . Special . | . . . . . . . . Kinetic 168 | . 11 49 11 30 . 30 37 Thermal 139 | . . 29 39 49 . . 22 Explosive . | . . . . . . . . Electromagnetic 42 | . 11 14 17 . . . . Robot Hit Streak 54 | . 11 20 54 48 . 26 41 Robot Miss Streak 5 | . 1 2 1 4 . 5 4 Penetration Max 1 | . . . . . . . 1 Secondary Targets 7 | . 1 1 2 . . 1 2 Max Gunslinging Chain 1 | . 1 1 1 . . 1 1 Shots Hit Robots 304 | . 20 74 55 69 . 30 56 Core Hits 244 | . 15 37 28 64 . 46 54 Critical Kills . | . . . . . . . . Critical Parts Destroyed 2 | . . 1 . . . . 1 Critical Strikes 7 | . . 1 2 . . . 4 Burn 5 | . . . 2 . . . 3 Destroy 2 | . . 1 . . . . 1 Melee Attacks . | . . . . . . . . Impact . | . . . . . . . . Slashing . | . . . . . . . . Piercing . | . . . . . . . . Sneak Attacks . | . . . . . . . . Combat Hostiles . | . . . . . . . . Follow-up Attacks . | . . . . . . . . Damage Inflicted 5380 | . 279 910 854 1366 . 793 1178 Guns 4563 | . 239 862 813 679 . 793 1177 Cannons 687 | . . . . 687 . . . Explosions 129 | . 40 48 41 . . . . Melee . | . . . . . . . . Ramming 1 | . . . . . . . 1 Kinetic 2832 | . 78 352 49 715 . 793 845 Thermal 1948 | . 40 412 513 651 . . 332 Explosive . | . . . . . . . . Electromagnetic 599 | . 161 146 292 . . . . Impact . | . . . . . . . . Slashing . | . . . . . . . . Piercing . | . . . . . . . . Highest Corruption 3 | . . 1 3 . . . 1 Average Corruption 1 | . . 1 2 . . . 1 Corruption Purged . | . . . . . . . . Corruption Blocked . | . . . . . . . . Effects 16 | . . 3 8 . . . 5 Message Errors 5 | . . 1 3 . . . 1 Matter Fused 2 | . . . 1 . . . 1 Heat Flow Errors 3 | . . 2 . . . . 1 Energy Discharges 2 | . . . 1 . . . 1 Data Loss (minor) 1 | . . . 1 . . . . Data Loss (major) 1 | . . . . . . . 1 Misfires 1 | . . . 1 . . . . Weapon Failures 1 | . . . 1 . . . . Overload Shots . | . . . . . . . . Overflow Damage 29 | . . 11 18 . . . . Projectiles . | . . . . . . . . Explosions 29 | . . 11 18 . . . . Melee . | . . . . . . . . Knockbacks 19 | . . . . 19 . . . Impact . | . . . . . . . . Kinetic 19 | . . . . 19 . . . Secondary . | . . . . . . . . Self-Inflicted Damage 50 | . . 26 24 . . . . Shots 2 | . . 1 1 . . . . Rammed 1 | . . . . . . . 1 Targets Rammed 1 | . . . . . . . 1 Kicked . | . . . . . . . . Crushed . | . . . . . . . . Highest Temperature 469 | . 93 369 386 469 . 10 437 Average Temperature 117 | . 27 103 130 135 . 3 141 Received Heat Transfer 1677 | . 24 60 279 738 . 162 414 Effects 13 | . . 3 . 4 . . 6 Shutdowns 8 | . . 1 . 3 . . 4 Energy Bleed 2 | . . 1 . . . . 1 Matter Decay 1 | . . . . . . . 1 Short Circuit 1 | . . . . 1 . . . Damage (minor) 1 | . . 1 . . . . . Siege Activations . | . . . . . . . . Robots Corrupted . | . . . . . . . . Combat Hostiles . | . . . . . . . . Parts Fried 1 | . . 1 . . . . . Impact Corruptions . | . . . . . . . . Robots Melted 1 | . . . . . . . 1 Combat Hostiles . | . . . . . . . . Parts Melted 16 | . . 4 1 2 . . 9 Heat Transferred 4954 | . . 901 1275 1554 . . 1224 Parts Sabotaged . | . . . . . . . . Parts Stolen . | . . . . . . . . Parts Stripped . | . . . . . . . . Power Chain Reactions 3 | . 1 1 1 . . . . Alert | -11 -10 -9 -9 -8 -7 -7 -6 ------- Run | Yrd Mat Mat Sto Mat Fac DSF Fac Peak Influence 528 | . 149 528 482 305 9 129 248 Initial 79 | . . 26 79 55 9 4 49 Average 135 | . 51 245 324 113 9 53 87 Maximum Alert Level 2 | . . 2 2 1 . . 1 Low Security (%) 76 | 100 100 40 37 83 100 100 88 Level 1 15 | . . 43 7 16 . . 11 Level 2 8 | . . 15 55 . . . . Level 3 . | . . . . . . . . Level 4 . | . . . . . . . . Level 5 . | . . . . . . . . High Security . | . . . . . . . . Max Security . | . . . . . . . . Squads Dispatched 11 | . . 1 5 . . 1 4 Investigation 1 | . . . . . . . 1 Extermination 2 | . . . . . . . 2 Reinforcement 3 | . . 1 . . . 1 1 Assault 2 | . . . 2 . . . . Garrison 3 | . . . 3 . . . . Intercept . | . . . . . . . . Searches Triggered . | . . . . . . . . Construction Impeded 1 | . . . . . . . 1 Haulers Reinforced . | . . . . . . . . Active Scanning Responses . | . . . . . . . . Cargo Convoy Interrupts . | . . . . . . . . Stealth | -11 -10 -9 -9 -8 -7 -7 -6 --------- Run | Yrd Mat Mat Sto Mat Fac DSF Fac Distress Signals 6 | . . 1 1 3 . . 1 Communications Jammed 3 | . . . . . . 2 1 Distress Signals 1 | . . . . . . . 1 Times Spotted 151 | . 11 40 26 30 . 7 37 Peak Tracking Total 11 | . 2 7 7 11 . 3 9 Tactical Retreats 26 | . . 10 4 2 . 1 9 Traps | -11 -10 -9 -9 -8 -7 -7 -6 ------- Run | Yrd Mat Mat Sto Mat Fac DSF Fac Traps Triggered 4 | . . 1 1 . 1 . 1 Indirectly . | . . . . . . . . Trap Hack Attempts . | . . . . . . . . Triggered . | . . . . . . . . Disarmed . | . . . . . . . . Reprogrammed . | . . . . . . . . Reused . | . . . . . . . . Traps Extracted . | . . . . . . . . Installed . | . . . . . . . . Triggered . | . . . . . . . . Machines | -11 -10 -9 -9 -8 -7 -7 -6 ---------- Run | Yrd Mat Mat Sto Mat Fac DSF Fac Machines Disabled 2 | . . 2 . . . . . Max in Single Turn 1 | . . 1 . . . . . Machines Repaired . | . . . . . . . . Machines Dismantled . | . . . . . . . . Machines Sabotaged . | . . . . . . . . Overloaded Fab Kills . | . . . . . . . . Hacking | -11 -10 -9 -9 -8 -7 -7 -6 --------- Run | Yrd Mat Mat Sto Mat Fac DSF Fac Machines Accessed 41 | . 8 9 4 4 2 . 14 Terminals 28 | . 6 7 3 3 2 . 7 Fabricators 1 | . . . . . . . 1 Repair Stations 2 | . . . . . . . 2 Recycling Units 9 | . 2 1 1 1 . . 4 Scanalyzers 1 | . . 1 . . . . . Garrison Access . | . . . . . . . . Total Hacks 122 | . 20 29 11 13 6 . 43 Successful 80 | . 9 19 8 8 5 . 31 Failed 42 | . 11 10 3 5 1 . 12 Catastrophic 8 | . 5 . . . . . 3 Database Lockouts . | . . . . . . . . Manual 90 | . 18 25 11 10 5 . 21 Terminals 86 | . 16 24 9 10 6 . 21 Fabricators 2 | . . . . . . . 2 Repair Stations 12 | . . . . . . . 12 Recycling Units 20 | . 4 3 2 3 . . 8 Scanalyzers 2 | . . 2 . . . . . Garrison Access . | . . . . . . . . Terminal Hacks 25 | . . 8 3 3 4 . 7 Record 2 | . . . . . . . 2 Part Schematic 10 | . . 6 1 1 1 . 1 Prototype ID Bank 3 | . . . 1 . . . 2 Open Door 1 | . . . 1 . . . . Open DSF 2 | . . . . . 1 . 1 Machine Index 2 | . . 1 . . 1 . . Alert Level 1 | . . . . 1 . . . Unreport Threat 3 | . . 1 . 1 . . 1 Zone Layout 1 | . . . . . 1 . . Fabricator Hacks 2 | . . . . . . . 2 Load Schematic 1 | . . . . . . . 1 Build 1 | . . . . . . . 1 Repair Station Hacks 8 | . . . . . . . 8 Scan Component 4 | . . . . . . . 4 Repair 3 | . . . . . . . 3 Refit 1 | . . . . . . . 1 Recycling Unit Hacks 8 | . 1 1 1 1 . . 4 Retrieve Components 8 | . 1 1 1 1 . . 4 Scanalyzer 2 | . . 2 . . . . . Insert Component 1 | . . 1 . . . . . Analyze 1 | . . 1 . . . . . Garrison Access Hacks . | . . . . . . . . Unauthorized Hacks 35 | . 8 8 4 4 1 . 10 Terminals 26 | . 6 7 3 3 1 . 6 Assimilate 1 | . . . 1 . . . . Botnet 25 | . 6 7 2 3 1 . 6 Fabricators . | . . . . . . . . Repair Stations . | . . . . . . . . Recycling Units 9 | . 2 1 1 1 . . 4 Reject 9 | . 2 1 1 1 . . 4 Scanalyzers . | . . . . . . . . Garrison Access . | . . . . . . . . Data Cores Recovered 5 | . . 3 . 1 . . 1 Used 3 | . . 2 . . . . 1 Hacking Detections 32 | . 7 7 2 3 1 . 12 Full Trace Events 1 | . 1 . . . . . . Feedback Events . | . . . . . . . . Feedback Blocked . | . . . . . . . . Robot Schematics Acquired . | . . . . . . . . Robots Built . | . . . . . . . . Authchips . | . . . . . . . . Time . | . . . . . . . . Total Robot Build Rating . | . . . . . . . . Part Schematics Acquired 11 | . . 7 1 1 1 . 1 Parts Built 2 | . . . . . . . 2 Authchips . | . . . . . . . . Time 117 | . . . . . . . 117 Total Part Build Rating 14 | . . . . . . . 14 Parts Repaired 3 | . . . . . . . 3 Time 52 | . . . . . . . 52 Parts Recycled . | . . . . . . . . Recycled Matter . | . . . . . . . . Retrieved Matter . | . . . . . . . . Retrieved Components 30 | . 2 2 2 10 . . 14 Parts Scanalyzed 1 | . . 1 . . . . . Part Schematics Acquired 1 | . . 1 . . . . . Parts Damaged . | . . . . . . . . Bothacking | -11 -10 -9 -9 -8 -7 -7 -6 ------------ Run | Yrd Mat Mat Sto Mat Fac DSF Fac Used RIF Installer . | . . . . . . . . Robots Hacked . | . . . . . . . . Non-combat . | . . . . . . . . Combat . | . . . . . . . . Robot Hacks Applied . | . . . . . . . . Relay Couplers Released . | . . . . . . . . Fabnet Peak Effective % . | . . . . . . . . Robots Rewired . | . . . . . . . . Allies Hacked . | . . . . . . . . Hacks Repelled . | . . . . . . . . Allies | -11 -10 -9 -9 -8 -7 -7 -6 -------- Run | Yrd Mat Mat Sto Mat Fac DSF Fac Total Allies 3 | . . . 3 . . . . Largest Group 2 | . . . 2 . . . . Highest-Rated Group 62 | . . . 62 . . . . Highest-Rated Ally 31 | . . . 31 . . . . Total Orders . | . . . . . . . . Ally Attacks 19 | . . . 19 . . . . Total Damage 326 | . . . 326 . . . . Kills 7 | . . . 7 . . . . Allies Corrupted . | . . . . . . . . Allies Melted . | . . . . . . . . Intel | -11 -10 -9 -9 -8 -7 -7 -6 ------- Run | Yrd Mat Mat Sto Mat Fac DSF Fac Robot Analysis Total . | . . . . . . . . Derelict Logs Recovered . | . . . . . . . . Drone Launches 9 | . . . . 7 . 2 . Drone Recoveries 5 | . . . . 5 . . . Exploration | -11 -10 -9 -9 -8 -7 -7 -6 ------------- Run | Yrd Mat Mat Sto Mat Fac DSF Fac Turns Passed 4662 | 57 799 932 425 920 111 179 1239 Spaces Moved 4783 | 42 576 1104 475 519 73 131 1863 Core 95 | 13 1 . . . . . 81 Treads 73 | . . . . 73 . . . Legs 335 | 29 306 . . . . . . Wheels 269 | . 269 . . . . . . Hover 14 | . . . . 14 . . . Flight 3997 | . . 1104 475 432 73 131 1782 Fastest Speed 24 | 50 80 29 28 31 114 29 24 Average Speed 63 | 98 101 31 57 136 122 86 45 Slowest Speed 297 | 120 250 114 115 297 197 114 150 Overloaded Moves . | . . . . . . . . Propulsion Burnouts . | . . . . . . . . Robots Hopped 10 | . . 1 . 1 . . 8 Cave-ins Triggered . | . . . . . . . . Exploration Rate (%) 52 | 3 90 89 55 49 2 94 36 Regions Visited 7 Branch Regions 1 Pre-discovered Areas . | . . . . . . . . Known Exits Taken 6 | 1 1 1 1 1 1 . . Unknown Exits Taken . | . . . . . . . . Scrap Searched . | . . . . . . . . Spaces Dug . | . . . . . . . . Terrain Destroyed 8 | . 3 2 3 . . . . Melee . | . . . . . . . . Projectile . | . . . . . . . . AOE 8 | . 3 2 3 . . . . Terrain Rammed . | . . . . . . . . Walls Destroyed . | . . . . . . . . Machines Disabled . | . . . . . . . . Actions | -11 -10 -9 -9 -8 -7 -7 -6 --------- Run | Yrd Mat Mat Sto Mat Fac DSF Fac Total 6087 | 57 770 1606 566 648 94 166 2180 Wait 870 | . 169 417 26 21 . 3 234 Move 4756 | 41 575 1101 474 516 72 130 1847 Hop 10 | . . 1 . 1 . . 8 Pick Up 80 | 9 7 13 11 16 2 8 14 Fast Attach 12 | . 2 1 . . . 1 8 Attach 49 | 7 1 7 5 15 2 5 7 Detach . | . . . . . . . . Swap 27 | . 1 6 4 2 . 2 12 Drop 41 | . 4 11 9 2 . 2 13 Fire 223 | . 11 49 37 75 . 15 36 Melee . | . . . . . . . . Ram 1 | . . . . . . . 1 Kick . | . . . . . . . . Crush . | . . . . . . . . Escape Stasis 18 | . . . . . 18 . . Rewire . | . . . . . . . . Trap . | . . . . . . . . Miscellaneous . | . . . . . . . . Route ------- -11/Scrapyard -10/Materials (discovered 6 exits: *Mat x3 / *Min x2 / Sub) -9/Materials (discovered 6 exits: *Mat x2 / *Min x2 / *Sto x2) -9/Storage -8/Materials -7/Factory -7/DSF -6/Factory History --------- Turn | Location | Event 2 | -11/Scrapyard | Met Revision 17 3 | -11/Scrapyard | Identified exit to Materials 3 | -11/Scrapyard | Discovered exit to Materials (range 15) 58 | -11/Scrapyard | Entered Materials 58 | -10/Materials | Evolved 1 slot: Power x1 244 | -10/Materials | Identified exit to Materials 244 | -10/Materials | Discovered exit to Materials (range 10) 306 | -10/Materials | Build established: Hacker-Mutant 444 | -10/Materials | Identified exit to Mines 444 | -10/Materials | Discovered exit to Mines (range 5) 456 | -10/Materials | Discovered exit to Materials (range 16) 728 | -10/Materials | Discovered exit to Mines (range 7) 785 | -10/Materials | Discovered exit to Materials (range 16) 847 | -10/Materials | Identified exit to Subcaves 847 | -10/Materials | Discovered exit to Subcaves (range 6) 857 | -10/Materials | Entered another Materials area 857 | -9/Materials | Evolved 2 slots: Propulsion x2 884 | -9/Materials | Identified exit to Storage 884 | -9/Materials | Discovered exit to Storage (range 3) 1199 | -9/Materials | Build established: Scavenger-Sprinter 1351 | -9/Materials | Identified exit to Mines 1351 | -9/Materials | Discovered exit to Mines (range 13) 1469 | -9/Materials | Identified exit to Materials 1469 | -9/Materials | Discovered exit to Materials (range 6) 1513 | -9/Materials | Discovered exit to Materials (range 4) 1559 | -9/Materials | Discovered exit to Mines (range 9) 1788 | -9/Materials | Discovered exit to Storage (range 6) 1789 | -9/Materials | Entered Storage 1829 | -9/Storage | Build established: Hacker-Sprinter 1863 | -9/Storage | Garrison activated, responded to threat 1893 | -9/Storage | Discovered exit to Materials (range 16) 1911 | -9/Storage | Met a pair of Derelict thieves 1968 | -9/Storage | Lost 3 parts (1n1u1w) 2029 | -9/Storage | Lost 4 parts (1p2n1w) 2214 | -9/Storage | Entered Materials 2214 | -8/Materials | Evolved 2 slots: Utility x2 2315 | -8/Materials | Build established: Hacker-Mutant 2717 | -8/Materials | Lost 3 parts (1n2u) 2790 | -8/Materials | Lost 5 parts (2p1n1u1w) 2819 | -8/Materials | Destroyed 8 combat bots 2969 | -8/Materials | Core integrity fell below 50% 3014 | -8/Materials | Identified exit to Factory 3014 | -8/Materials | Discovered exit to Factory (range 15) 3134 | -8/Materials | Entered Factory 3134 | -7/Factory | Evolved 2 slots: Utility x2 3244 | -7/Factory | Identified exit to DSF 3245 | -7/Factory | Entered DSF 3287 | -7/DSF | Additional patrols routed to DSF 3362 | -7/DSF | Identified exit to Factory 3362 | -7/DSF | Discovered exit to Factory (range 14) 3424 | -7/DSF | Entered Factory 3424 | -6/Factory | Accompanied by 1 ally 3424 | -6/Factory | Evolved 2 slots: Propulsion x2 3730 | -6/Factory | Fabricated Adv. Power Amplifier (x2) 3861 | -6/Factory | Lost 9 parts (2p5n2w) 3883 | -6/Factory | Repaired Transmission Jammer 4153 | -6/Factory | Repaired Xenon Bombardment Thruster 4171 | -6/Factory | Repaired Nuclear Pulse Thruster 4269 | -6/Factory | Build established: Wizard-Mutant 4552 | -6/Factory | Lost 6 parts (1p4n1w) 4603 | -6/Factory | Core integrity fell below 50% 4626 | -6/Factory | Core integrity fell below 20% 4663 | -6/Factory | Destroyed by G-50 Soldier with Heavy Laser Last Messages --------------- Slug penetrates Pressure Siphon. Pressure Siphon disabled. Penetrated by Slug. Slug penetrates Pressure Siphon. System Shield destroyed. Slug penetrates Terminal. Slug penetrates Pressure Siphon. Acquired 2 matter. Slug penetrates Terminal. Terminal collapses. Terminal disabled. Slug penetrates Pressure Siphon. Critical hit (Burn: +37). Penetrated by Slug. Mic. Nuclear Core destroyed. Penetrated by Slug. ALERT: Cargo convoy en route, clear transfer corridor. Adv. ECM Suite destroyed. Imp. Hacking Suite destroyed. Map ----- +----------------------------------------------------+ | ????????# # #?????????????????????? | | #####???# # // #?????????????????????? | | #???# # // #?????????????????????? | | #???# # #?????????????????????? | | #??## # #?????????????????????? | | " #??# # #?????????????????????? | | " #??#T ##############?????????????????????? | | " #??## #??????????????????????????????????? | | " #???# ###############????????????????????? | | " ##### ## #????????????????????? | | + ## #????????????????????? | | ##### ## """ """ #???###??????????????? | | #???# #???? """ """ ##### #####??????????? | | #???# ## """ """ # ]] #??????????? | | ######### ## # """ ]] #????####### | | ## """ """ # "Y ] #????# # | | ## """ """ + """! ###### # | | ## """ """ # """ + # | | ## # """ ###### # | | ## # """ #????# # | | ######### ## # #????# # | | ????????# ############+######+########## # | | ????????# g R # | | ????????# k # | | ????????# "" ! # | | ????????# @ "" + | | ????????# k """ # | | ??????######+#############+########## """ # | | ??????# ! ## #??# ! """ # | | ??????# "" ## #??# ! | | ??????# "" ## #### | | ??????# "T """ ## ! + "" """ | | ??????# "" """ ## #### ""F""" | | ??????# "" * """ ## #??# """"" | | ??????# ## #??##########+### | | ??????# """ """ ## ] #???????????????? | | ??????# """ """ ## #???????????????? | | ??????# """ """ ## #???????????????? | | ??????# ## ! #???????????????? | | ??????# ] ## #???????????????? | | ??????############################???????????????? | | ?????????????????????????????????????????????????? | | ?????????????????????????????????????????????????? | | ?????????????????????????????????????????????????? | | ?????????????????????????????????????????????????? | | ?????????????????????????????????????????????????? | | ?????????????????????????????????????????????????? | | ?????????????????????????????????????????????????? | | ?????????????????????????????????????????????????? | | ?????????????????????????????????????????????????? | +----------------------------------------------------+ Best States ------------- Heat Dissipation 56 Energy Generation 24 Energy Capacity 400 Matter Stores 300 Matter Capacity 300 Sight Range 16 Robot Scan Range 14 Terrain Scan Density 10 ECM Strength 2 Jamming Range 12 Resistance: KI 35 Resistance: TH 35 Resistance: EX 60 Resistance: EM 35 Resistance: I 35 Resistance: S 35 Resistance: P 35 Evasion (%) 65 Targeting Accuracy 5 Recoil Reduction 1 Offensive Hacking 44 Defensive Hacking 22 Item Schematics ----------------- Particle Gun | -9/Materials | Scanalyzed Datajack | -9/Materials | Hacked Arm. Wheel | -9/Materials | Hacked Weight Redist. System | -9/Materials | Hacked Targeting Computer | -9/Materials | Hacked ECM Suite | -9/Materials | Hacked EM Pulse Gun | -9/Materials | Hacked Structural Scanner | -9/Storage | Hacked Reaction Control System | -8/Materials | Hacked Deuterium Engine | -7/Factory | Hacked Remote Datajack | -6/Factory | Hacked Robot Schematics ------------------ None Fabricated ------------ Adv. Power Amplifier | x2 | -6/Factory | Preloaded Alien Tech Used ----------------- None Achievements -------------- Can't Catch Me More Dakka Please Universal Adapter Challenges ------------ None Game ------ Seed TransmissionRainbowCorpse Manual? 0 Play Time 01:18:19 Cumulative 34.6 hours Start 2024.09.01 @ 14:51:04 End 2024.09.01 @ 16:09:46 Sessions 1 Manual Loads 0 Difficulty Explorer Special Mode None Game No. 48 Rogue 1 Adventurer 3 Explorer 44 Win Type - Total 0 Types 0/0/0/0/0/0/0/0/0 Lore% 9 Gallery% 20 Achievement% 23 Wizard Run 0 Options --------- Layout 1 ASCII 0 Keyboard 0 Movement Mouse Keybinds 0 Fullscreen 1 Font 32/SmallcapsGlow Map View 50x35 Zoom Use 0% Tactical HUD 0 Map Filters NONE Filters NONE Steam 1 RUN: 966a2057-01ee-4514-92b2-44af6f79b264